Cogmind - Beta 12 @@@ ROGUE MODE // 2023.04.20 @ 19:55:28 Player: wchar_t Result: Destroyed by S-27 Virus with Autogun Performance ------------- Evolutions (3) 1500 Regions Visited (7) 1400 Robots Destroyed (11) 55 Value Destroyed (150) 150 Prototype IDs (0) 0 Alien Tech Used (0) 0 Bonus (200) 200 TOTAL SCORE: 3305 Bonus ------- Entered Garrisons 200 Cogmind --------- Core Integrity 0/700 Matter 24/300 Energy 100/100 System Corruption 0% Temperature Cool (0) Movement Core (50) Location -7/Garrison Parts ------- > --- POWER (1) -------- (None) > --- PROPULSION (5) --- (None) > --- UTILITY (5) ------ Advanced Targeting Computer Improved Melee Analysis Suite > --- WEAPON (2) ------- (None) > --- INVENTORY (5) ---- Improved Treads Weight Redist. System Transmission Jammer Improved Power Shielding Mining Claw Peak State ------------ > --- POWER ------------ (None) > --- PROPULSION ------- Xenon Bombardment Thruster Xenon Bombardment Thruster > --- UTILITY ---------- Improved Cooling System Advanced Targeting Computer Improved Melee Analysis Suite System Shield > --- WEAPON ----------- Mace > --- INVENTORY -------- Improved Treads Armored Wheel Weight Redist. System Improved Power Shielding Mining Claw [Rating: 25] Favorites ----------- Power None Propulsion Xenon Bombardment Thruster Flight Unit Xenon Bombardment Thruster Utility Advanced Targeting Computer Device Improved Cooling System Processor Advanced Targeting Computer Hackware System Shield Protection Improved Power Shielding Weapon Grenade Launcher Launcher Grenade Launcher Impact Weapon Mace Build | -11 -10 -10 -10 -9 -8 -7 -7 ------- Run | Jun Mat Min Exi Min Mat Fac Gar Slots Evolved 6 | . . . . . 4 2 . Power . | . . . . . . . . Propulsion 3 | . . . . . 2 1 . Utility 3 | . . . . . 2 1 . Weapon . | . . . . . . . . Parts Attached 16 | . 2 . . 1 8 5 . Power . | . . . . . . . . Engine . | . . . . . . . . Core . | . . . . . . . . Reactor . | . . . . . . . . Propulsion 4 | . . . . . 4 . . Treads . | . . . . . . . . Leg . | . . . . . . . . Wheel . | . . . . . . . . Hover . | . . . . . . . . Flight 4 | . . . . . 4 . . Utility 6 | . . . . . 2 4 . Device 2 | . . . . . 1 1 . Storage . | . . . . . . . . Processor 2 | . . . . . . 2 . Hackware 1 | . . . . . . 1 . Protection 1 | . . . . . 1 . . Artifact . | . . . . . . . . Weapon 6 | . 2 . . 1 2 1 . Energy Gun . | . . . . . . . . Energy Cannon . | . . . . . . . . Ballistic Gun . | . . . . . . . . Ballistic Cannon . | . . . . . . . . Launcher 5 | . 2 . . 1 2 . . Special Weapon . | . . . . . . . . Impact Weapon 1 | . . . . . . 1 . Slashing Weapon . | . . . . . . . . Piercing Weapon . | . . . . . . . . Special Melee Weapon . | . . . . . . . . Unidentified Prototypes . | . . . . . . . . Parts Lost 9 | . . . . . 5 2 2 Power . | . . . . . . . . Propulsion 4 | . . . . . 2 1 1 Utility 2 | . . . . . 1 1 . Weapon 3 | . . . . . 2 . 1 Highest Loss Streak 4 | . . . . . 4 2 2 To Critical Strikes . | . . . . . . . . Average Slot Usage (%) 18 | . 12 5 . 14 15 41 30 Flight 3 | . . . . . 4 13 4 Device 3 | . . . . . 6 6 4 Processor 4 | . . . . . . 12 15 Launcher 4 | . 12 5 . 14 2 . . Impact Weapon 1 | . . . . . . 4 5 Naked Turns 134 | . 15 51 65 3 . . . Heaviest Build 8 | . 3 3 . 3 8 4 4 Greatest Support 18 | 3 3 3 3 3 18 12 6 Greatest Overweight (x) 2 | . . . . . 2 . . Average Overweight (x) . | . . . . . . . . Largest Inventory Capacity 5 | 5 5 5 5 5 5 5 5 Average Capacity 5 | 5 5 5 5 5 5 5 5 Most Carried 5 | . 1 2 2 2 5 5 5 Average Carried 2 | . . 1 2 1 3 4 5 Final Capacity 5 | 5 5 5 5 5 5 5 5 Final Carried 5 | . 1 2 2 2 5 5 5 Class Distribution -------------------- 100% | Mutant Dominant Class ---------------- Mutant | -10/Materials Mutant | -10/Mines Mutant | -10/Exiles Mutant | -9/Mines Mutant | -8/Materials Mutant | -7/Factory Mutant | -7/Garrison Resources | -11 -10 -10 -10 -9 -8 -7 -7 ----------- Run | Jun Mat Min Exi Min Mat Fac Gar Matter Collected 113 | 65 20 . . 28 . . . Remotely . | . . . . . . . . Salvage Created 68 | . 46 . . 11 11 . . Parts 16 | . 8 . . 5 3 . . Haulers Intercepted . | . . . . . . . . Recyclers Shooed . | . . . . . . . . Parts Field Recycled . | . . . . . . . . Retrieved Matter . | . . . . . . . . Parts Self-Destructed . | . . . . . . . . Prevented . | . . . . . . . . Kills | -11 -10 -10 -10 -9 -8 -7 -7 ------- Run | Jun Mat Min Exi Min Mat Fac Gar Combat Hostiles Destroyed 11 | . 6 . . 3 2 . . AOE 11 | . 6 . . 3 2 . . Classes Destroyed 1 | . 1 . . . . . . Swarmer 11 | . 6 . . 3 2 . . Best Kill Streak 3 | . 3 . . 3 2 . . Combat Bots Only 3 | . 3 . . 3 2 . . Max Kills in Single Turn 3 | . 2 . . 3 2 . . Gunslinging . | . . . . . . . . Exploded 3 | . 2 . . 3 2 . . Melee . | . . . . . . . . Uniques/NPCs Destroyed . | . . . . . . . . Combat | -11 -10 -10 -10 -9 -8 -7 -7 -------- Run | Jun Mat Min Exi Min Mat Fac Gar Damage Taken 1615 | . 67 7 . 41 598 225 677 Core 1157 | . 57 7 . 16 374 152 551 Absorbed by Shields . | . . . . . . . . Core Remaining (%) 66 | 100 . . . 68 32 . . Volleys Fired 9 | . 4 . . 1 4 . . Largest 1 | . 1 . . 1 1 . . Hottest 36 | . 30 . . 30 36 . . Shots Fired 9 | . 4 . . 1 4 . . Gun . | . . . . . . . . Cannon . | . . . . . . . . Launcher 9 | . 4 . . 1 4 . . Special . | . . . . . . . . Kinetic . | . . . . . . . . Thermal . | . . . . . . . . Explosive 9 | . 4 . . 1 4 . . Electromagnetic . | . . . . . . . . Robot Hit Streak 6 | . 4 . . 5 6 . . Robot Miss Streak . | . . . . . . . . Penetration Max . | . . . . . . . . Secondary Targets . | . . . . . . . . Shots Hit Robots 6 | . 4 . . 1 1 . . Core Hits 11 | . 7 . . 1 3 . . Critical Kills . | . . . . . . . . Critical Parts Destroyed . | . . . . . . . . Critical Strikes . | . . . . . . . . Melee Attacks . | . . . . . . . . Impact . | . . . . . . . . Slashing . | . . . . . . . . Piercing . | . . . . . . . . Sneak Attacks . | . . . . . . . . Combat Hostiles . | . . . . . . . . Follow-up Attacks . | . . . . . . . . Damage Inflicted 727 | . 391 15 . 143 178 . . Guns . | . . . . . . . . Cannons . | . . . . . . . . Explosions 693 | . 391 . . 141 161 . . Melee . | . . . . . . . . Ramming 34 | . . 15 . 2 17 . . Kinetic . | . . . . . . . . Thermal . | . . . . . . . . Explosive 693 | . 391 . . 141 161 . . Electromagnetic . | . . . . . . . . Impact . | . . . . . . . . Slashing . | . . . . . . . . Piercing . | . . . . . . . . Highest Corruption . | . . . . . . . . Average Corruption . | . . . . . . . . Corruption Purged . | . . . . . . . . Corruption Blocked . | . . . . . . . . Overload Shots . | . . . . . . . . Overflow Damage 147 | . 46 . . 59 42 . . Projectiles . | . . . . . . . . Explosions 147 | . 46 . . 59 42 . . Melee . | . . . . . . . . Knockbacks . | . . . . . . . . Impact . | . . . . . . . . Kinetic . | . . . . . . . . Secondary . | . . . . . . . . Self-Inflicted Damage 117 | . 3 7 . 1 106 . . Shots 3 | . 1 . . . 2 . . Rammed 8 | . . 2 . 1 5 . . Targets Rammed 8 | . . 2 . 1 5 . . Kicked . | . . . . . . . . Crushed . | . . . . . . . . Highest Temperature 5 | . 5 . . . . . . Average Temperature 5 | . 5 . . . . . . Received Heat Transfer 333 | . . . . 15 144 27 147 Siege Activations . | . . . . . . . . Robots Corrupted . | . . . . . . . . Combat Hostiles . | . . . . . . . . Parts Fried . | . . . . . . . . Impact Corruptions . | . . . . . . . . Robots Melted . | . . . . . . . . Combat Hostiles . | . . . . . . . . Parts Melted . | . . . . . . . . Heat Transferred . | . . . . . . . . Parts Sabotaged . | . . . . . . . . Parts Stolen . | . . . . . . . . Parts Stripped . | . . . . . . . . Power Chain Reactions . | . . . . . . . . Missiles Intercepted . | . . . . . . . . Alert | -11 -10 -10 -10 -9 -8 -7 -7 ------- Run | Jun Mat Min Exi Min Mat Fac Gar Peak Influence 231 | . 196 76 . 105 231 123 91 Initial 105 | . . 76 . . 40 105 81 Average 103 | . 105 76 . 67 148 113 78 Maximum Alert Level 1 | . . . . . 1 . . Low Security (%) 93 | 100 100 100 . 100 76 100 100 Level 1 6 | . . . . . 23 . . Level 2 . | . . . . . . . . Level 3 . | . . . . . . . . Level 4 . | . . . . . . . . Level 5 . | . . . . . . . . High Security . | . . . . . . . . Max Security . | . . . . . . . . Squads Dispatched 4 | . . . . . 3 1 . Investigation 2 | . . . . . 1 1 . Extermination . | . . . . . . . . Reinforcement 2 | . . . . . 2 . . Assault . | . . . . . . . . Garrison . | . . . . . . . . Intercept . | . . . . . . . . Searches Triggered . | . . . . . . . . Construction Impeded . | . . . . . . . . Haulers Reinforced . | . . . . . . . . Active Scanning Responses . | . . . . . . . . Cargo Convoy Interrupts . | . . . . . . . . Stealth | -11 -10 -10 -10 -9 -8 -7 -7 --------- Run | Jun Mat Min Exi Min Mat Fac Gar Distress Signals 2 | . 1 . . . 1 . . Communications Jammed . | . . . . . . . . Distress Signals . | . . . . . . . . Times Spotted 61 | . 9 . . 6 26 7 13 Peak Tracking Total 15 | . 4 . . 3 15 7 12 Tactical Retreats 4 | . . . . 1 2 . 1 Traps | -11 -10 -10 -10 -9 -8 -7 -7 ------- Run | Jun Mat Min Exi Min Mat Fac Gar Traps Triggered 4 | . 1 . . . 1 . 2 Indirectly . | . . . . . . . . Trap Hack Attempts . | . . . . . . . . Triggered . | . . . . . . . . Disarmed . | . . . . . . . . Reprogrammed . | . . . . . . . . Reused . | . . . . . . . . Traps Extracted . | . . . . . . . . Installed . | . . . . . . . . Triggered . | . . . . . . . . Machines | -11 -10 -10 -10 -9 -8 -7 -7 ---------- Run | Jun Mat Min Exi Min Mat Fac Gar Machines Disabled 4 | . . . . . 4 . . Max in Single Turn 2 | . . . . . 2 . . Machines Repaired . | . . . . . . . . Machines Sabotaged . | . . . . . . . . Overloaded Fab Kills . | . . . . . . . . Hacking | -11 -10 -10 -10 -9 -8 -7 -7 --------- Run | Jun Mat Min Exi Min Mat Fac Gar Machines Accessed 5 | . 1 1 . . 1 2 . Terminals 3 | . 1 . . . 1 1 . Fabricators . | . . . . . . . . Repair Stations . | . . . . . . . . Recycling Units . | . . . . . . . . Scanalyzers . | . . . . . . . . Garrison Access 1 | . . . . . . 1 . Total Hacks 11 | . 1 1 . . 3 6 . Successful 5 | . 1 1 . . . 3 . Failed 6 | . . . . . 3 3 . Catastrophic 1 | . . . . . . 1 . Database Lockouts . | . . . . . . . . Manual 8 | . . . . . 3 5 . Terminals 9 | . 1 . . . 3 5 . Fabricators . | . . . . . . . . Repair Stations . | . . . . . . . . Recycling Units . | . . . . . . . . Scanalyzers . | . . . . . . . . Garrison Access 1 | . . . . . . 1 . Terminal Hacks 3 | . 1 1 . . . 1 . Open Door 1 | . . 1 . . . . . Branch Access Points 2 | . 1 . . . . 1 . Fabricator Hacks . | . . . . . . . . Repair Station Hacks . | . . . . . . . . Recycling Unit Hacks . | . . . . . . . . Scanalyzer . | . . . . . . . . Garrison Access Hacks 1 | . . . . . . 1 . Unlock Access 1 | . . . . . . 1 . Unauthorized Hacks 1 | . . . . . . 1 . Terminals 1 | . . . . . . 1 . Botnet 1 | . . . . . . 1 . Fabricators . | . . . . . . . . Repair Stations . | . . . . . . . . Recycling Units . | . . . . . . . . Scanalyzers . | . . . . . . . . Garrison Access . | . . . . . . . . Data Cores Recovered . | . . . . . . . . Used . | . . . . . . . . Hacking Detections 2 | . . . . . 1 1 . Full Trace Events 2 | . . . . . 1 1 . Feedback Events . | . . . . . . . . Feedback Blocked . | . . . . . . . . Robot Schematics Acquired . | . . . . . . . . Robots Built . | . . . . . . . . Authchips . | . . . . . . . . Time . | . . . . . . . . Total Robot Build Rating . | . . . . . . . . Part Schematics Acquired . | . . . . . . . . Parts Built . | . . . . . . . . Authchips . | . . . . . . . . Time . | . . . . . . . . Total Part Build Rating . | . . . . . . . . Parts Repaired . | . . . . . . . . Time . | . . . . . . . . Parts Recycled . | . . . . . . . . Recycled Matter . | . . . . . . . . Retrieved Matter . | . . . . . . . . Retrieved Components . | . . . . . . . . Parts Scanalyzed . | . . . . . . . . Part Schematics Acquired . | . . . . . . . . Parts Damaged . | . . . . . . . . Bothacking | -11 -10 -10 -10 -9 -8 -7 -7 ------------ Run | Jun Mat Min Exi Min Mat Fac Gar Used RIF Installer . | . . . . . . . . Robots Hacked . | . . . . . . . . Non-combat . | . . . . . . . . Combat . | . . . . . . . . Robot Hacks Applied . | . . . . . . . . Relay Couplers Released . | . . . . . . . . Fabnet Peak Effective % . | . . . . . . . . Robots Rewired . | . . . . . . . . Allies Hacked . | . . . . . . . . Hacks Repelled . | . . . . . . . . Allies | -11 -10 -10 -10 -9 -8 -7 -7 -------- Run | Jun Mat Min Exi Min Mat Fac Gar Total Allies . | . . . . . . . . Largest Group . | . . . . . . . . Highest-Rated Group . | . . . . . . . . Highest-Rated Ally . | . . . . . . . . Total Orders . | . . . . . . . . Ally Attacks . | . . . . . . . . Total Damage . | . . . . . . . . Kills . | . . . . . . . . Allies Corrupted . | . . . . . . . . Allies Melted . | . . . . . . . . Intel | -11 -10 -10 -10 -9 -8 -7 -7 ------- Run | Jun Mat Min Exi Min Mat Fac Gar Robot Analysis Total . | . . . . . . . . Derelict Logs Recovered 2 | . . 2 . . . . . Drone Launches . | . . . . . . . . Drone Recoveries . | . . . . . . . . Exploration | -11 -10 -10 -10 -9 -8 -7 -7 ------------- Run | Jun Mat Min Exi Min Mat Fac Gar Turns Passed 713 | 10 90 80 65 86 166 116 100 Spaces Moved 1254 | 19 154 155 130 161 270 247 118 Core 886 | 19 154 155 130 161 197 . 70 Treads . | . . . . . . . . Legs . | . . . . . . . . Wheels . | . . . . . . . . Hover . | . . . . . . . . Flight 368 | . . . . . 73 247 48 Fastest Speed 34 | 50 50 50 50 50 34 37 40 Average Speed 47 | 50 50 50 50 50 50 37 45 Slowest Speed 150 | 50 50 50 50 50 150 40 50 Overloaded Moves . | . . . . . . . . Propulsion Burnouts . | . . . . . . . . Robots Hopped 3 | . . . . . 3 . . Cave-ins Triggered . | . . . . . . . . Exploration Rate (%) 26 | 3 28 34 50 33 32 9 25 Regions Visited 7 Branch Regions 3 Pre-discovered Areas 3 | . . 2 . 1 . . . Known Exits Taken 2 | . 1 . . . . 1 . Unknown Exits Taken 5 | 1 . 1 1 1 1 . . Scrap Searched 1 | . . . . 1 . . . Spaces Dug 5 | . . . . . 5 . . Terrain Destroyed 79 | . 30 . . 5 44 . . Melee . | . . . . . . . . Projectile . | . . . . . . . . AOE 79 | . 30 . . 5 44 . . Terrain Rammed . | . . . . . . . . Walls Destroyed . | . . . . . . . . Machines Disabled . | . . . . . . . . Actions | -11 -10 -10 -10 -9 -8 -7 -7 --------- Run | Jun Mat Min Exi Min Mat Fac Gar Total 1350 | 18 161 157 129 164 290 268 163 Wait 23 | . 1 . . . 1 12 9 Move 1242 | 18 153 154 129 160 264 247 117 Hop 2 | . . . . . 2 . . Pick Up 9 | . 1 . . 1 4 3 . Fast Attach 10 | . 2 . . . 5 3 . Attach 6 | . . . . 1 3 2 . Detach 3 | . . 1 . . 2 . . Swap . | . . . . . . . . Drop 2 | . . . . . . 1 1 Fire 9 | . 4 . . 1 4 . . Melee . | . . . . . . . . Ram 8 | . . 2 . 1 5 . . Kick . | . . . . . . . . Crush . | . . . . . . . . Escape Stasis 36 | . . . . . . . 36 Rewire . | . . . . . . . . Trap . | . . . . . . . . Miscellaneous . | . . . . . . . . Route ------- -11/Junkyard -10/Materials (discovered 2 exits: *Min x2) -10/Mines (discovered 2 exits: [*Mat] / [*Exi]) -10/Exiles -9/Mines -8/Materials -7/Factory (discovered 3 exits: Low x2 / Gar) -7/Garrison (discovered 1 exit: [*Fac]) History --------- Turn | Location | Event 3 | -11/Junkyard | Discovered new exit (range 15) 11 | -11/Junkyard | Entered Materials 14 | -10/Materials | Identified exit to Mines 101 | -10/Materials | Entered Mines 116 | -10/Mines | Discovered new exit (range 8) 123 | -10/Mines | Met a Derelict who couldn't figure out how to use a Trap Extractor 132 | -10/Mines | Learned location of Recycling (-8) 179 | -10/Mines | Deemed a non-threat by the Exiles lab entrance 179 | -10/Mines | Discovered new exit (range 5) 181 | -10/Mines | Entered Exiles 181 | -10/Exiles | Found Exiles lab abandoned 241 | -10/Exiles | Discovered new exit (range 11) 246 | -10/Exiles | Entered Mines 308 | -9/Mines | Build established: Mutant 328 | -9/Mines | Learned location of Storage (-8) 329 | -9/Mines | Discovered new exit (range 3) 332 | -9/Mines | Entered Materials 332 | -8/Materials | Evolved 4 slots: Propulsion x2, Utility x2 479 | -8/Materials | Core integrity fell below 50% 492 | -8/Materials | Discovered new exit (range 16) 498 | -8/Materials | Entered Factory 498 | -7/Factory | Evolved 2 slots: Propulsion x1, Utility x1 513 | -7/Factory | Lost 4 parts (2n1u1w) 526 | -7/Factory | Identified exit to Lower Caves 614 | -7/Factory | Identified exit to Garrison 614 | -7/Factory | Entered Garrison 676 | -7/Garrison | Triggered checkpoint 697 | -7/Garrison | Core integrity fell below 50% 700 | -7/Garrison | Discovered new exit (range 10) 704 | -7/Garrison | Attempted to access garrison exit controls, blocked by remote lockdown 711 | -7/Garrison | Core integrity fell below 20% 714 | -7/Garrison | Destroyed by S-27 Virus with Autogun Last Messages --------------- 00650_ Field strength at 55. 00651_ Field strength at 50. 00652_ Field strength at 45. 00653_ Field strength at 40. 00654_ Field strength at 35. 00655_ Field strength at 30. 00656_ Field strength at 25. 00657_ Field strength at 20. 00658_ Field strength at 15. 00659_ Field strength at 10. 00660_ Field strength at 5. 00661_ Stasis field depleted. 00676_ Beams of light sweep through the air. An alarm sounds. Garrison Door activated. 00678_ Xenon Bombardment Thruster destroyed. 00679_ Dropped Imp. Cooling System. 00696_ Mace destroyed. 00700_ EXIT=FOUND 00704_ Attempting to access garrison exit controls... 00704_ Remote lockdown engaged. Map ----- +----------------------------------------------------+ | ?????????????????????????????# | | ?????????????????????????????############ ## | | ??????????????????????????????????????### ## | | ??????????????????????????????????????# | | ??????????????????????????????????????# | | ??????????????????????????????????????# | | ??????????????????????????????????????# | | ??????????????????????????????????????###! ## | | ??????????????????????################### ## | | ??????????????????????# | | ??????????????????????# | | ??????????????????????# | | ??????????????????????# ################ ## | | ??????????????????????# #??????????????# #? | | ??????????????????????# g#??????????????# #??### | | ??????????????????????# g#??????????????# #????? | | ??????????????????????# g########???????# #????? | | ??????????????????????# g #????? | | ??????????????????????# ########???????# #????? | | ??????????????????????# #??????????????? #????? | | ??????????????????????#ggg#??????????????? #????? | | ??????????????????????# #??????????????? #????? | | ??????????????????????# #??????????????? #????? | | ??????????????????????# #??????????????? ?????? | | ??????????????????????# #??????????????? ?????? | | ??????????????????????# @#??????????????????????? | | ??????????????????????# #??????????????????????? | | ??????????????????????# #??????????????????????? | | ??????????????????????# #??????????????????????? | | ??????????????????????# #??????????????????????? | | ??????????????????????# ss#??????????????????????? | | ??????????????????????# s #??????????????????????? | | ??????????????????????# #??????????????????????? | | ??????????????????????# s #??????????????????????? | | ?????????????????????## #??????????????????????? | | ?????????????????????# #??????????????????????? | | ?????????????????????##Y #??????????????????????? | | ??????????????????????# #??????????????????????? | | ??????????????????????# #??????????????????????? | | ??????????????????????# #??????????????????????? | | ??????????????????????# #??????????????????????? | | ??????????????????????# #??????????????????????? | | ????????????????????### #??????????????????????? | | ????????????????????# #??????????????????????? | | ????????????????????# < #??????????????????????? | | ????????????????????# #??????????????????????? | | ????????????????????#######??????????????????????? | | ?????????????????????????????????????????????????? | | ?????????????????????????????????????????????????? | | ?????????????????????????????????????????????????? | +----------------------------------------------------+ Best States ------------- Heat Dissipation 61 Energy Generation 5 Energy Capacity 100 Matter Stores 165 Matter Capacity 300 Sight Range 16 Terrain Scan Density 10 ECM Strength 1 Power Shielding 66 Evasion (%) 62 Targeting Accuracy 8 Defensive Hacking 10 Item Schematics ----------------- None Robot Schematics ------------------ None Fabricated ------------ Nothing Alien Tech Used ----------------- None Achievements -------------- None Challenges ------------ None Game ------ Seed WarpTrackerDoublenader Manual? 0 Play Time 00:12:40 Cumulative 270.4 hours Start 2023.04.20 @ 19:44:28 End 2023.04.20 @ 19:55:28 Sessions 1 Manual Loads 0 Difficulty Rogue Special Mode None Game No. 106 Rogue 90 Adventurer 8 Explorer 8 Win Type - Total 18 Types 11/1/3/1/1/1/0/0/0 Lore% 87 Gallery% 83 Achievement% 75 Wizard Run 0 Options --------- ASCII 1 Keyboard 1 Movement Vi Keybinds 0 Fullscreen 1 Font 18/CogWide Map View 76x50 Tactical HUD 1 Map Filters NONE Filters NONE Steam 0 RUN: 0b31f77a-b824-44e2-83f8-6265b6e07aac